[Event "Live Chess"]
[Site "Chess.com"]
[Date "2023.05.20"]
[Round "-"]
[White "Pandreq"]
[Black "smoggyrabbit"]
[Result "0-1"]
[WhiteElo "1282"]
[BlackElo "1670"]
[TimeControl "300"]
[EndTime "13:13:43 PDT"]
[Termination "smoggyrabbit won by resignation"]

1. d4 {[%clk 0:04:56.4]} 1... e6 {[%clk 0:04:57.9]} 2. c4 {[%clk 0:04:55.3]}
2... f5 {[%clk 0:04:57]} 3. Nc3 {[%clk 0:04:54.6]} 3... Nf6 {[%clk 0:04:55.7]}
4. Bg5 {[%clk 0:04:53]} 4... Bb4 {[%clk 0:04:53.5]} 5. a3 {[%clk 0:04:51.4]}
5... Bxc3+ {[%clk 0:04:52.3]} 6. bxc3 {[%clk 0:04:51.3]} 6... b6 {[%clk
0:04:46.4]} 7. Nf3 {[%clk 0:04:49.4]} 7... Bb7 {[%clk 0:04:45.6]} 8. e3 {[%clk
0:04:48.7]} 8... O-O {[%clk 0:04:44.3]} 9. g3 {[%clk 0:04:46.9]} 9... d6 {[%clk
0:04:37.6]} 10. Bg2 {[%clk 0:04:44.5]} 10... Nbd7 {[%clk 0:04:34.3]} 11. O-O
{[%clk 0:04:43]} 11... Qe8 {[%clk 0:04:32.9]} 12. Re1 {[%clk 0:04:35.4]} 12...
Ne4 {[%clk 0:04:31.9]} 13. Qc2 {[%clk 0:04:29.4]} 13... h6 {[%clk 0:04:29.6]}
14. Bf4 {[%clk 0:04:21.3]} 14... g5 {[%clk 0:04:27.1]} 15. Bxg5 {[%clk
0:04:06.9]} 15... hxg5 {[%clk 0:04:25.7]} 16. Nxg5 {[%clk 0:03:58.9]} 16... Nxg5
{[%clk 0:03:15.2]} 17. Bxb7 {[%clk 0:03:55.5]} 17... Rb8 {[%clk 0:03:14.1]} 18.
Bc6 {[%clk 0:03:45.9]} 18... d5 {[%clk 0:03:05.5]} 19. cxd5 {[%clk 0:03:40.4]}
19... Nf3+ {[%clk 0:03:03.5]} 20. Kg2 {[%clk 0:03:34.8]} 20... Nxe1+ {[%clk
0:03:01.2]} 21. Rxe1 {[%clk 0:03:33.3]} 21... exd5 {[%clk 0:02:46.5]} 22. Bxd5+
{[%clk 0:03:28.1]} 22... Kh8 {[%clk 0:02:45.1]} 23. e4 {[%clk 0:03:22.9]} 23...
f4 {[%clk 0:02:38.3]} 24. e5 {[%clk 0:03:07.6]} 24... Qh5 {[%clk 0:02:19]} 25.
Bf3 {[%clk 0:02:50.6]} 25... Qh6 {[%clk 0:02:12.8]} 26. Rh1 {[%clk 0:02:26.6]}
26... Rf7 {[%clk 0:02:00.6]} 27. g4 {[%clk 0:02:16.7]} 27... Rh7 {[%clk
0:01:57]} 28. h3 {[%clk 0:02:09]} 28... Rg8 {[%clk 0:01:52.7]} 29. Qc1 {[%clk
0:01:51.2]} 29... Nf8 {[%clk 0:01:50.9]} 30. Be4 {[%clk 0:01:44.8]} 30... Rhg7
{[%clk 0:01:46.2]} 31. f3 {[%clk 0:01:42.4]} 31... Ne6 {[%clk 0:01:44.7]} 32.
Bd5 {[%clk 0:01:36]} 32... Rd8 {[%clk 0:01:28.4]} 33. c4 {[%clk 0:01:30.8]}
33... Nxd4 {[%clk 0:01:22.6]} 34. Qc3 {[%clk 0:01:22.9]} 34... Ne2 {[%clk
0:01:19]} 35. Qb2 {[%clk 0:01:18.2]} 35... Ng3 {[%clk 0:01:17.4]} 36. Rh2 {[%clk
0:01:12.4]} 36... c6 {[%clk 0:01:12.2]} 37. Be4 {[%clk 0:00:38.4]} 37... Qh4
{[%clk 0:00:41.3]} 38. e6 {[%clk 0:00:27.9]} 38... Nxe4 {[%clk 0:00:38.3]} 39.
fxe4 {[%clk 0:00:22]} 39... Qg3+ {[%clk 0:00:36.8]} 40. Kf1 {[%clk 0:00:18.6]}
40... Rd1+ {[%clk 0:00:25.4]} 0-1

[Event "Live Chess"]
[Site "Chess.com"]
[Date "2023.05.20"]
[Round "-"]
[White "Duke_of_Bebington"]
[Black "CheckThis4"]
[Result "1/2-1/2"]
[WhiteElo "1600"]
[BlackElo "2536"]
[TimeControl "300"]
[EndTime "13:13:49 PDT"]
[Termination "Game drawn by agreement"]

1. e4 {[%clk 0:04:57.6]} 1... Nc6 {[%clk 0:04:53.7]} 2. Nf3 {[%clk 0:04:55.4]}
2... e5 {[%clk 0:04:52.6]} 3. Bc4 {[%clk 0:04:53.4]} 3... Nf6 {[%clk 0:04:49.3]}
4. d3 {[%clk 0:04:46.7]} 4... Be7 {[%clk 0:04:39.8]} 5. O-O {[%clk 0:04:43.7]}
5... d6 {[%clk 0:04:38.4]} 6. Be3 {[%clk 0:04:38.1]} 6... Na5 {[%clk 0:04:33.7]}
7. Bb3 {[%clk 0:04:36.6]} 7... Nxb3 {[%clk 0:04:28.3]} 8. axb3 {[%clk
0:04:36.5]} 8... a6 {[%clk 0:04:27.5]} 9. c3 {[%clk 0:04:35.8]} 9... O-O {[%clk
0:04:25.9]} 10. Nbd2 {[%clk 0:04:35.3]} 10... Bg4 {[%clk 0:04:22.8]} 11. Qc2
{[%clk 0:04:33.5]} 11... Nd7 {[%clk 0:04:19.4]} 12. d4 {[%clk 0:04:31.5]} 12...
f5 {[%clk 0:04:08.7]} 13. exf5 {[%clk 0:04:27.4]} 13... Bxf5 {[%clk 0:04:07.1]}
14. Qd1 {[%clk 0:04:23.2]} 14... e4 {[%clk 0:04:06.4]} 15. Ne1 {[%clk
0:04:21.8]} 15... d5 {[%clk 0:04:05.4]} 16. Nc2 {[%clk 0:04:19.3]} 16... Bd6
{[%clk 0:04:03.9]} 17. f3 {[%clk 0:04:18.1]} 17... Nf6 {[%clk 0:03:58.6]} 18.
fxe4 {[%clk 0:04:15.5]} 18... Bxh2+ {[%clk 0:03:54.6]} 19. Kxh2 {[%clk
0:04:08.3]} 19... Ng4+ {[%clk 0:03:53.1]} 20. Kg1 {[%clk 0:04:05.9]} 20... dxe4
{[%clk 0:03:46.2]} 21. Rxf5 {[%clk 0:03:50]} 21... Qh4 {[%clk 0:03:42.6]} 22.
Rxf8+ {[%clk 0:03:31.3]} 22... Rxf8 {[%clk 0:03:42.5]} 23. Nf1 {[%clk
0:03:20.7]} 23... Nf2 {[%clk 0:02:25.5]} 24. Bxf2 {[%clk 0:02:37.5]} 24... Qxf2+
{[%clk 0:02:25.4]} 25. Kh1 {[%clk 0:02:35]} 25... Rf6 {[%clk 0:02:23.4]} 26. Nh2
{[%clk 0:02:17.5]} 26... Rg6 {[%clk 0:02:18.9]} 27. Qg1 {[%clk 0:02:12.3]} 27...
Qxc2 {[%clk 0:02:17.1]} 28. Rf1 {[%clk 0:01:56.7]} 28... e3 {[%clk 0:02:09]} 29.
Re1 {[%clk 0:01:40.2]} 29... e2 {[%clk 0:02:00.1]} 30. Qe3 {[%clk 0:01:33.4]}
30... h6 {[%clk 0:01:35.1]} 31. Qe8+ {[%clk 0:01:15.2]} 31... Kh7 {[%clk
0:01:31.7]} 32. Qxe2 {[%clk 0:01:14.8]} 32... Qf5 {[%clk 0:01:29.9]} 33. Qe4
{[%clk 0:01:11]} 33... Qh5 {[%clk 0:01:23.3]} 34. Kg1 {[%clk 0:01:07.9]} 34...
Qg5 {[%clk 0:01:20.5]} 35. Qf3 {[%clk 0:01:00.6]} 35... Qd2 {[%clk 0:01:16.1]}
36. Qf2 {[%clk 0:00:56.3]} 36... Qg5 {[%clk 0:01:12.7]} 37. Nf3 {[%clk
0:00:53.5]} 37... Qh5 {[%clk 0:01:06.8]} 38. Re3 {[%clk 0:00:47.8]} 38... Rf6
{[%clk 0:01:04]} 39. Qc2+ {[%clk 0:00:44]} 1/2-1/2

[Event "Live Chess"]
[Site "Chess.com"]
[Date "2023.05.20"]
[Round "-"]
[White "wot-not"]
[Black "Stanbad1"]
[Result "0-1"]
[WhiteElo "1486"]
[BlackElo "2421"]
[TimeControl "300"]
[EndTime "13:13:50 PDT"]
[Termination "Stanbad1 won by resignation"]

1. d4 {[%clk 0:04:54.6]} 1... Nf6 {[%clk 0:04:55.9]} 2. Nc3 {[%clk 0:04:50.1]}
2... d5 {[%clk 0:04:54.6]} 3. Bg5 {[%clk 0:04:47.8]} 3... Nbd7 {[%clk
0:04:51.8]} 4. Nf3 {[%clk 0:04:45.3]} 4... e6 {[%clk 0:04:49.6]} 5. e3 {[%clk
0:04:44.2]} 5... a6 {[%clk 0:04:44.9]} 6. Bd3 {[%clk 0:04:43.2]} 6... b6 {[%clk
0:04:43.8]} 7. O-O {[%clk 0:04:42.2]} 7... c5 {[%clk 0:04:41.3]} 8. dxc5 {[%clk
0:04:37.6]} 8... bxc5 {[%clk 0:04:38.7]} 9. a3 {[%clk 0:04:32.5]} 9... Rb8
{[%clk 0:04:36.9]} 10. Rb1 {[%clk 0:04:30.6]} 10... Be7 {[%clk 0:04:33.2]} 11.
Ne2 {[%clk 0:04:24.4]} 11... c4 {[%clk 0:04:30.1]} 12. Bxf6 {[%clk 0:04:18.8]}
12... Nxf6 {[%clk 0:04:27.8]} 13. Bxc4 {[%clk 0:04:17.2]} 13... dxc4 {[%clk
0:04:24.4]} 14. Qxd8+ {[%clk 0:04:15.1]} 14... Bxd8 {[%clk 0:04:23]} 15. Ne5
{[%clk 0:04:13.6]} 15... Bc7 {[%clk 0:04:16.6]} 16. Nxc4 {[%clk 0:04:12.4]}
16... O-O {[%clk 0:04:14.1]} 17. Nd2 {[%clk 0:04:02]} 17... Bb7 {[%clk
0:04:11.2]} 18. Nb3 {[%clk 0:03:53.7]} 18... Be4 {[%clk 0:03:58.4]} 19. Rbc1
{[%clk 0:03:46.4]} 19... Be5 {[%clk 0:03:53.8]} 20. Ned4 {[%clk 0:03:35.5]}
20... Bxd4 {[%clk 0:03:50.6]} 21. exd4 {[%clk 0:03:34.4]} 21... Bxc2 {[%clk
0:03:49]} 22. Rxc2 {[%clk 0:03:33.4]} 22... Rxb3 {[%clk 0:03:47.1]} 23. Rfc1
{[%clk 0:03:27.9]} 23... h6 {[%clk 0:03:31.8]} 24. f3 {[%clk 0:03:26.9]} 24...
Rd8 {[%clk 0:03:28.2]} 25. Rc8 {[%clk 0:03:20.6]} 25... Rxc8 {[%clk 0:03:26.3]}
26. Rxc8+ {[%clk 0:03:20.1]} 26... Kh7 {[%clk 0:03:24.3]} 27. Rc6 {[%clk
0:03:16.6]} 27... Rxb2 {[%clk 0:03:19.5]} 28. Rxa6 {[%clk 0:03:15.4]} 28... Nd5
{[%clk 0:03:18.5]} 29. Ra7 {[%clk 0:03:13.4]} 29... Kg6 {[%clk 0:03:13.3]} 30.
a4 {[%clk 0:03:11.9]} 30... Nf4 {[%clk 0:03:06.5]} 31. g3 {[%clk 0:03:09.3]}
31... Ne2+ {[%clk 0:03:04.7]} 32. Kf1 {[%clk 0:03:07.3]} 32... Nxd4 {[%clk
0:03:02.4]} 33. a5 {[%clk 0:03:07]} 33... Nxf3 {[%clk 0:03:00.9]} 34. a6 {[%clk
0:03:06.3]} 34... Nxh2+ {[%clk 0:03:00]} 35. Kg1 {[%clk 0:03:03.6]} 35... Nf3+
{[%clk 0:02:59.5]} 36. Kf1 {[%clk 0:03:03.1]} 36... Ra2 {[%clk 0:02:58.8]} 37.
Ra8 {[%clk 0:03:00.4]} 37... Ne5 {[%clk 0:02:57.5]} 38. a7 {[%clk 0:02:59.7]}
38... Nc6 {[%clk 0:02:56.4]} 0-1

[Event "Live Chess"]
[Site "Chess.com"]
[Date "2023.05.20"]
[Round "-"]
[White "Ferrarifan27"]
[Black "Tema1107"]
[Result "1-0"]
[WhiteElo "2070"]
[BlackElo "1967"]
[TimeControl "300"]
[EndTime "13:13:52 PDT"]
[Termination "Ferrarifan27 won by resignation"]

1. e4 {[%clk 0:04:57]} 1... c5 {[%clk 0:04:54.5]} 2. Nf3 {[%clk 0:04:55.9]} 2...
d6 {[%clk 0:04:48.9]} 3. d4 {[%clk 0:04:54.6]} 3... cxd4 {[%clk 0:04:48.8]} 4.
Nxd4 {[%clk 0:04:54.1]} 4... Nf6 {[%clk 0:04:43.6]} 5. Nc3 {[%clk 0:04:52.5]}
5... g6 {[%clk 0:04:30.8]} 6. Nd5 {[%clk 0:04:43.6]} 6... Nxd5 {[%clk 0:04:22]}
7. Bb5+ {[%clk 0:04:37.4]} 7... Bd7 {[%clk 0:04:15.9]} 8. exd5 {[%clk
0:04:36.3]} 8... Bg7 {[%clk 0:04:07.2]} 9. O-O {[%clk 0:04:33.7]} 9... O-O
{[%clk 0:03:48.9]} 10. Bxd7 {[%clk 0:04:31.9]} 10... Nxd7 {[%clk 0:03:48.8]} 11.
Re1 {[%clk 0:04:30.3]} 11... Rc8 {[%clk 0:03:34.1]} 12. Bg5 {[%clk 0:04:24.4]}
12... Nf6 {[%clk 0:03:20.1]} 13. Nb3 {[%clk 0:04:18.5]} 13... h6 {[%clk
0:03:14.9]} 14. Bh4 {[%clk 0:04:11.5]} 14... a5 {[%clk 0:02:53.4]} 15. a4 {[%clk
0:04:06.4]} 15... Qc7 {[%clk 0:02:27.4]} 16. c3 {[%clk 0:04:03.6]} 16... Rfe8
{[%clk 0:02:18.1]} 17. Qf3 {[%clk 0:03:52.6]} 17... g5 {[%clk 0:01:51.7]} 18.
Bg3 {[%clk 0:03:50.9]} 18... Qc4 {[%clk 0:01:27.9]} 19. Nd4 {[%clk 0:03:48.8]}
19... Qxd5 {[%clk 0:01:24.5]} 20. Qe3 {[%clk 0:03:30.8]} 20... Ng4 {[%clk
0:00:52.4]} 21. Qe2 {[%clk 0:03:25]} 21... Ne5 {[%clk 0:00:23]} 22. Nf5 {[%clk
0:03:21.3]} 22... Bf8 {[%clk 0:00:17.2]} 23. Qh5 {[%clk 0:03:18.3]} 23... Qe6
{[%clk 0:00:13.1]} 24. Nd4 {[%clk 0:03:12.7]} 24... Qg6 {[%clk 0:00:12.3]} 25.
Qd1 {[%clk 0:03:03.8]} 25... Bg7 {[%clk 0:00:11.4]} 26. Qb3 {[%clk 0:03:02.1]}
26... Nc4 {[%clk 0:00:10]} 27. Qxb7 {[%clk 0:02:58.1]} 27... Rb8 {[%clk
0:00:08.9]} 28. Qc7 {[%clk 0:02:56]} 28... Ne5 {[%clk 0:00:01.9]} 29. Nc6 {[%clk
0:02:45.3]} 29... Rbc8 {[%clk 0:00:01.1]} 30. Nxe7+ {[%clk 0:02:43.2]} 1-0

[Event "Live Chess"]
[Site "Chess.com"]
[Date "2023.05.20"]
[Round "-"]
[White "xx_blindpuffin_xx"]
[Black "Jonmill"]
[Result "1-0"]
[WhiteElo "2205"]
[BlackElo "1242"]
[TimeControl "300"]
[EndTime "13:13:57 PDT"]
[Termination "xx_blindpuffin_xx won by resignation"]

1. b3 {[%clk 0:04:51.8]} 1... e5 {[%clk 0:04:53.8]} 2. Bb2 {[%clk 0:04:50.6]}
2... Nc6 {[%clk 0:04:53.5]} 3. g3 {[%clk 0:04:47.5]} 3... d5 {[%clk 0:04:52.3]}
4. Bg2 {[%clk 0:04:47]} 4... f5 {[%clk 0:04:46.2]} 5. e3 {[%clk 0:04:46.1]} 5...
Nf6 {[%clk 0:04:44.4]} 6. Ne2 {[%clk 0:04:45.2]} 6... Bd6 {[%clk 0:04:34.5]} 7.
f4 {[%clk 0:04:43.7]} 7... exf4 {[%clk 0:04:02.3]} 8. exf4 {[%clk 0:04:41.4]}
8... Bc5 {[%clk 0:03:51.3]} 9. d4 {[%clk 0:04:30.4]} 9... Bb6 {[%clk 0:03:45.4]}
10. O-O {[%clk 0:04:29.4]} 10... O-O {[%clk 0:03:35]} 11. Nbc3 {[%clk
0:04:26.5]} 11... Ne4 {[%clk 0:03:28]} 12. Na4 {[%clk 0:04:19.6]} 12... Qf6
{[%clk 0:03:12.6]} 13. Nxb6 {[%clk 0:04:16]} 13... axb6 {[%clk 0:03:11]} 14. c4
{[%clk 0:04:15.9]} 14... Ne7 {[%clk 0:02:47.4]} 15. Qd3 {[%clk 0:04:01]} 15...
c5 {[%clk 0:02:28.2]} 16. cxd5 {[%clk 0:03:58.5]} 16... Nxd5 {[%clk 0:02:22.1]}
17. dxc5 {[%clk 0:03:57.7]} 17... Qxb2 {[%clk 0:02:17.4]} 18. Qxd5+ {[%clk
0:03:56.7]} 18... Kh8 {[%clk 0:02:15.8]} 19. Rfe1 {[%clk 0:03:42]} 19... bxc5
{[%clk 0:02:06.7]} 20. Bxe4 {[%clk 0:03:23.6]} 20... fxe4 {[%clk 0:02:02.2]} 21.
Qxc5 {[%clk 0:03:22.9]} 21... Bh3 {[%clk 0:01:55]} 22. Qd4 {[%clk 0:03:13.1]}
22... Qc2 {[%clk 0:01:21.2]} 23. Qc3 {[%clk 0:03:10.2]} 23... Qd3 {[%clk
0:01:18.6]} 24. Rad1 {[%clk 0:02:59.4]} 24... Qf3 {[%clk 0:01:07.5]} 25. Qxf3
{[%clk 0:02:55.5]} 25... exf3 {[%clk 0:01:06.4]} 26. Nd4 {[%clk 0:02:54.1]}
26... Bg2 {[%clk 0:00:58.4]} 27. a4 {[%clk 0:02:49.9]} 27... Rfe8 {[%clk
0:00:57.4]} 28. Kf2 {[%clk 0:02:46.9]} 28... Rxe1 {[%clk 0:00:49.8]} 29. Rxe1
{[%clk 0:02:45.1]} 29... Rd8 {[%clk 0:00:49.7]} 30. Nxf3 {[%clk 0:02:43.1]}
30... Bxf3 {[%clk 0:00:48.5]} 31. Kxf3 {[%clk 0:02:43]} 31... Rd3+ {[%clk
0:00:47.9]} 32. Kg4 {[%clk 0:02:38.4]} 32... Kg8 {[%clk 0:00:45.5]} 33. Rb1
{[%clk 0:02:34.8]} 33... Kf7 {[%clk 0:00:44.1]} 34. Kf5 {[%clk 0:02:33.5]} 34...
Rd2 {[%clk 0:00:40.6]} 35. h4 {[%clk 0:02:31.1]} 35... g6+ {[%clk 0:00:38.3]}
36. Ke4 {[%clk 0:02:29.7]} 36... b6 {[%clk 0:00:34.4]} 37. Rc1 {[%clk
0:02:28.4]} 37... Rb2 {[%clk 0:00:29.3]} 38. Rc3 {[%clk 0:02:25.6]} 38... Rg2
{[%clk 0:00:27.1]} 39. Kd5 {[%clk 0:02:24.6]} 39... Rd2+ {[%clk 0:00:19.4]} 40.
Kc6 {[%clk 0:02:23.1]} 40... Rd8 {[%clk 0:00:15.6]} 41. Kxb6 {[%clk 0:02:22.2]}
1-0

[Event "Live Chess"]
[Site "Chess.com"]
[Date "2023.05.20"]
[Round "-"]
[White "rmethornhill"]
[Black "LiamClery2020"]
[Result "0-1"]
[WhiteElo "1176"]
[BlackElo "2079"]
[TimeControl "300"]
[EndTime "13:14:06 PDT"]
[Termination "LiamClery2020 won by resignation"]

1. e4 {[%clk 0:04:59.1]} 1... Nf6 {[%clk 0:04:59.8]} 2. e5 {[%clk 0:04:58.1]}
2... Nd5 {[%clk 0:04:58.9]} 3. d4 {[%clk 0:04:57.2]} 3... d6 {[%clk 0:04:58]} 4.
exd6 {[%clk 0:04:54]} 4... cxd6 {[%clk 0:04:56.3]} 5. Nf3 {[%clk 0:04:53.1]}
5... g6 {[%clk 0:04:55.2]} 6. Bc4 {[%clk 0:04:52.3]} 6... Nb6 {[%clk 0:04:54.1]}
7. Bb3 {[%clk 0:04:51]} 7... Bg7 {[%clk 0:04:53.7]} 8. c3 {[%clk 0:04:49.6]}
8... Nc6 {[%clk 0:04:52.5]} 9. Bg5 {[%clk 0:04:46.6]} 9... O-O {[%clk
0:04:51.5]} 10. O-O {[%clk 0:04:45.3]} 10... h6 {[%clk 0:04:50.7]} 11. Be3
{[%clk 0:04:39.4]} 11... Bg4 {[%clk 0:04:49.2]} 12. Nbd2 {[%clk 0:04:37.6]}
12... e5 {[%clk 0:04:48.2]} 13. dxe5 {[%clk 0:04:34.2]} 13... dxe5 {[%clk
0:04:48.1]} 14. Qc2 {[%clk 0:04:32.5]} 14... Rc8 {[%clk 0:04:44.9]} 15. h3
{[%clk 0:04:30.8]} 15... Bxf3 {[%clk 0:04:41.6]} 16. Nxf3 {[%clk 0:04:29.5]}
16... Nd4 {[%clk 0:04:41]} 17. cxd4 {[%clk 0:04:23.2]} 17... Rxc2 {[%clk
0:04:39.2]} 18. Bxc2 {[%clk 0:04:20.9]} 18... exd4 {[%clk 0:04:37.7]} 19. Rad1
{[%clk 0:04:16.2]} 19... Qc7 {[%clk 0:04:19.2]} 20. Nxd4 {[%clk 0:03:54.9]}
20... Bxd4 {[%clk 0:04:17.4]} 21. Rxd4 {[%clk 0:03:51.4]} 21... Qxc2 {[%clk
0:04:15.9]} 22. Bxh6 {[%clk 0:03:50.4]} 22... Re8 {[%clk 0:04:14.2]} 23. Rd2
{[%clk 0:03:45.1]} 23... Qc5 {[%clk 0:04:11.4]} 24. Rfd1 {[%clk 0:03:39.2]}
24... Kh7 {[%clk 0:04:07.4]} 25. Be3 {[%clk 0:03:32.1]} 25... Qf5 {[%clk
0:04:02.9]} 26. Bxb6 {[%clk 0:03:19.7]} 26... axb6 {[%clk 0:04:02.1]} 27. Rd7
{[%clk 0:03:17.3]} 27... Re2 {[%clk 0:04:00.7]} 28. f3 {[%clk 0:03:15.5]} 28...
Qc5+ {[%clk 0:03:54.5]} 29. Kh1 {[%clk 0:03:12.2]} 29... Qf5 {[%clk 0:03:48.9]}
30. Rxb7 {[%clk 0:03:10.4]} 30... Qg5 {[%clk 0:03:46.4]} 31. Rg1 {[%clk
0:03:05.5]} 31... Rxb2 {[%clk 0:03:43.1]} 32. Rxf7+ {[%clk 0:03:04.4]} 32... Kg8
{[%clk 0:03:42.4]} 33. Ra7 {[%clk 0:03:01.7]} 33... Rc2 {[%clk 0:03:39.3]} 34.
a4 {[%clk 0:02:59.8]} 34... Rc1 {[%clk 0:03:38]} 35. Ra8+ {[%clk 0:02:50.8]}
35... Kh7 {[%clk 0:03:35.7]} 36. Ra7+ {[%clk 0:02:49.4]} 36... Kh6 {[%clk
0:03:34.2]} 37. Rxc1 {[%clk 0:02:40.5]} 37... Qxc1+ {[%clk 0:03:34.1]} 38. Kh2
{[%clk 0:02:34.5]} 38... Qc8 {[%clk 0:03:30.8]} 39. Re7 {[%clk 0:02:28.7]} 39...
Qa8 {[%clk 0:03:26.3]} 40. Re4 {[%clk 0:02:25.3]} 40... Qb8+ {[%clk 0:03:23.9]}
41. Kh1 {[%clk 0:02:23.5]} 41... Qd6 {[%clk 0:03:21.6]} 42. Rh4+ {[%clk
0:02:15.6]} 42... Kg7 {[%clk 0:03:19.9]} 43. Rg4 {[%clk 0:02:11.7]} 43... Qd1+
{[%clk 0:03:18.3]} 44. Kh2 {[%clk 0:02:10.6]} 44... Qd6+ {[%clk 0:03:15.6]} 45.
Kh1 {[%clk 0:02:09.6]} 45... Kf6 {[%clk 0:03:15.2]} 46. Kg1 {[%clk 0:02:01.5]}
46... Qc5+ {[%clk 0:03:13.1]} 47. Kh2 {[%clk 0:02:00.3]} 47... Kf5 {[%clk
0:03:10.4]} 48. Kh1 {[%clk 0:01:56.9]} 48... g5 {[%clk 0:03:07.7]} 49. Kh2
{[%clk 0:01:53.3]} 49... Qc7+ {[%clk 0:03:01.6]} 50. Kh1 {[%clk 0:01:51.6]}
50... Qc5 {[%clk 0:02:55.6]} 51. Kh2 {[%clk 0:01:49.3]} 51... b5 {[%clk
0:02:54.7]} 52. axb5 {[%clk 0:01:45.7]} 52... Qxb5 {[%clk 0:02:53]} 53. Kh1
{[%clk 0:01:44.3]} 53... Qd7 {[%clk 0:02:48.9]} 54. Kg1 {[%clk 0:01:40.5]} 54...
Qb5 {[%clk 0:02:46.2]} 55. Kh1 {[%clk 0:01:37.3]} 55... Qe2 {[%clk 0:02:44.5]}
56. Kg1 {[%clk 0:01:35]} 56... Qe1+ {[%clk 0:02:42]} 57. Kh2 {[%clk 0:01:33.1]}
57... Qd2 {[%clk 0:02:39.7]} 58. Kg1 {[%clk 0:01:31]} 58... Kg6 {[%clk
0:02:34.6]} 59. Kh1 {[%clk 0:01:28.1]} 59... Kh5 {[%clk 0:02:33.3]} 60. Kh2
{[%clk 0:01:27]} 60... Qd6+ {[%clk 0:02:31.8]} 61. Kg1 {[%clk 0:01:26]} 61...
Qa6 {[%clk 0:02:31]} 62. Kh1 {[%clk 0:01:24.7]} 62... Qe2 {[%clk 0:02:30]} 63.
Kg1 {[%clk 0:01:23.5]} 63... Qe1+ {[%clk 0:02:28.3]} 64. Kh2 {[%clk 0:01:22]}
64... Kg6 {[%clk 0:02:22]} 65. h4 {[%clk 0:00:54]} 65... Kf6 {[%clk 0:02:19.7]}
66. hxg5+ {[%clk 0:00:52.9]} 66... Kg6 {[%clk 0:02:18.8]} 67. Rg3 {[%clk
0:00:43.8]} 67... Qb4 {[%clk 0:02:13.6]} 68. Rg4 {[%clk 0:00:40.9]} 68... Qb8+
{[%clk 0:02:12.3]} 69. Kg1 {[%clk 0:00:37.5]} 69... Qb3 {[%clk 0:02:09.9]} 70.
Kh1 {[%clk 0:00:32.4]} 70... Qc3 {[%clk 0:02:07.8]} 71. Kg1 {[%clk 0:00:30.1]}
71... Qc2 {[%clk 0:02:06.1]} 72. Kh1 {[%clk 0:00:28.9]} 72... Qd2 {[%clk
0:02:04.6]} 73. Kg1 {[%clk 0:00:27.9]} 73... Qe1+ {[%clk 0:02:03.6]} 74. Kh2
{[%clk 0:00:27.1]} 74... Qe6 {[%clk 0:02:03.1]} 75. Kg1 {[%clk 0:00:25.3]} 75...
Kf5 {[%clk 0:02:00.4]} 76. Kh2 {[%clk 0:00:20.7]} 76... Qg6 {[%clk 0:01:58.3]}
77. Kg1 {[%clk 0:00:19.3]} 77... Ke5 {[%clk 0:01:56.9]} 78. Kh1 {[%clk 0:00:19]}
78... Qb6 {[%clk 0:01:53.3]} 79. f4+ {[%clk 0:00:17.9]} 79... Kf5 {[%clk
0:01:51.6]} 80. Rh4 {[%clk 0:00:14.1]} 80... Qf2 {[%clk 0:01:46.6]} 81. Kh2
{[%clk 0:00:13.1]} 81... Qxh4+ {[%clk 0:01:45.5]} 0-1

[Event "Live Chess"]
[Site "Chess.com"]
[Date "2023.05.20"]
[Round "-"]
[White "MrBlond89"]
[Black "domrobson"]
[Result "0-1"]
[WhiteElo "1340"]
[BlackElo "1737"]
[TimeControl "300"]
[EndTime "13:14:09 PDT"]
[Termination "domrobson won on time"]

1. e4 {[%clk 0:04:58.4]} 1... e5 {[%clk 0:04:59.3]} 2. Nf3 {[%clk 0:04:57.7]}
2... Nc6 {[%clk 0:04:57.1]} 3. Bc4 {[%clk 0:04:57.1]} 3... Nf6 {[%clk
0:04:55.5]} 4. O-O {[%clk 0:04:46.7]} 4... Bc5 {[%clk 0:04:40.3]} 5. c3 {[%clk
0:04:36.1]} 5... Nxe4 {[%clk 0:04:38.1]} 6. d4 {[%clk 0:04:33.5]} 6... d5 {[%clk
0:04:36.6]} 7. dxc5 {[%clk 0:04:30]} 7... dxc4 {[%clk 0:04:33.2]} 8. Qxd8+
{[%clk 0:04:26.6]} 8... Kxd8 {[%clk 0:04:32.6]} 9. Be3 {[%clk 0:04:14.5]} 9...
h6 {[%clk 0:04:15.3]} 10. Nbd2 {[%clk 0:03:54.5]} 10... Bf5 {[%clk 0:03:51.5]}
11. Rad1 {[%clk 0:03:50.8]} 11... Ke7 {[%clk 0:03:48]} 12. Nxe4 {[%clk
0:03:38.8]} 12... Bxe4 {[%clk 0:03:41.2]} 13. Nd2 {[%clk 0:02:53.2]} 13... Bd3
{[%clk 0:03:38.3]} 14. Rfe1 {[%clk 0:02:48.1]} 14... f6 {[%clk 0:03:35.7]} 15.
Nf3 {[%clk 0:02:44.7]} 15... Rad8 {[%clk 0:03:32.6]} 16. Rd2 {[%clk 0:02:14.4]}
16... Rd7 {[%clk 0:03:25.5]} 17. Red1 {[%clk 0:02:08.7]} 17... Rhd8 {[%clk
0:03:22.1]} 18. b3 {[%clk 0:02:02]} 18... g5 {[%clk 0:03:11.1]} 19. bxc4 {[%clk
0:01:44.7]} 19... Bxc4 {[%clk 0:03:07.2]} 20. Rxd7+ {[%clk 0:01:42.9]} 20...
Rxd7 {[%clk 0:03:05.5]} 21. Rxd7+ {[%clk 0:01:42.8]} 21... Kxd7 {[%clk
0:03:04.2]} 22. Nd2 {[%clk 0:01:31.7]} 22... Bxa2 {[%clk 0:02:59.9]} 23. Ne4
{[%clk 0:01:23.2]} 23... Ke6 {[%clk 0:02:39]} 24. g4 {[%clk 0:01:14.3]} 24...
Bd5 {[%clk 0:02:30.7]} 25. f3 {[%clk 0:01:12.5]} 25... Bxe4 {[%clk 0:02:28.4]}
26. fxe4 {[%clk 0:01:11.3]} 26... a5 {[%clk 0:02:26.4]} 27. Bc1 {[%clk
0:00:57.6]} 27... Na7 {[%clk 0:02:23.1]} 28. Bb2 {[%clk 0:00:54.1]} 28... Nb5
{[%clk 0:02:20.7]} 29. c4 {[%clk 0:00:44.8]} 29... Nd4 {[%clk 0:02:17.5]} 30.
Kf2 {[%clk 0:00:39.1]} 30... a4 {[%clk 0:02:11.5]} 31. Ke3 {[%clk 0:00:17.3]}
31... a3 {[%clk 0:02:07.8]} 32. Bc3 {[%clk 0:00:15.1]} 32... a2 {[%clk
0:02:04.2]} 33. h3 {[%clk 0:00:11.6]} 33... Nc2+ {[%clk 0:01:59.7]} 34. Kd3
{[%clk 0:00:10.2]} 34... a1=Q {[%clk 0:01:59]} 35. Bxa1 {[%clk 0:00:08.6]} 35...
Nxa1 {[%clk 0:01:58.7]} 0-1